bitfinex/quotes_SOLUSD_20251117
["timestamp","ask_amount","ask_price","bid_price","bid_amount"]
[1763363621347,2.80315621,141.65,141.61,0.67]
[1763363621732,3.48315621,141.65,141.61,0.67]
[1763363622131,0.68,141.66,141.61,0.67]
[1763363622329,2.80315621,141.65,141.61,0.67]
[1763363622963,2.80315621,141.66,141.61,0.67]
[1763363623151,2.80315621,141.65,141.61,0.67]
[1763363623330,0.78,141.7,141.61,10.53467249]
[1763363623530,2.80315621,141.67,141.62,2.80315621]
[1763363623828,2.80315621,141.65,141.62,0.67]
[1763363624044,2.80315621,141.64,141.62,0.67]
[1763363626265,2.80315621,141.64,141.59,2.80315621]
[1763363626266,2.80315621,141.63,141.59,23.3212]
[1763363626459,2.80315621,141.63,141.6,0.67]
[1763363626945,0.68,141.67,141.6,0.67]
[1763363627131,2.80315621,141.64,141.6,0.67]
[1763363628949,2.80315621,141.62,141.59,0.67]
[1763363629151,2.80315621,141.6,141.57,0.67]
[1763363629460,2.80315621,141.59,141.57,0.67]
[1763363629954,2.80315621,141.59,141.56,0.67]
[1763363630257,2.80315621,141.59,141.54,0.67]
[1763363630846,2.80315621,141.59,141.54,3.47315621]
[1763363631258,2.80315621,141.59,141.55,0.67]
[1763363631667,2.80315621,141.58,141.55,0.67]
[1763363633149,2.80315621,141.59,141.55,0.67]
[1763363634365,2.80315621,141.56,141.53,0.67]
[1763363634871,2.80315621,141.56,141.52,22.6512]
[1763363635172,2.80315621,141.55,141.54,22.6512]
[1763363635336,2.80315621,141.55,141.52,23.3212]
[1763363635337,2.80315621,141.55,141.52,0.67]
[1763363635757,2.80315621,141.56,141.54,22.6512]
[1763363636440,2.80315621,141.55,141.54,22.6512]
[1763363636674,2.80315621,141.55,141.51,17.65]
[1763363636970,25.45435621,141.6,141.52,0.67]
[1763363636971,1.79400664,141.54,141.52,0.67]
[1763363637142,1.79400664,141.54,141.51,16.98]
[1763363637343,1.79400664,141.54,141.51,17.65]
[1763363638661,1.79400664,141.54,141.52,0.67]
[1763363639170,1.79400664,141.54,141.51,16.98]
[1763363639466,1.79400664,141.52,141.51,16.98]
[1763363641365,2.47400664,141.52,141.51,16.98]
[1763363641945,1.79400664,141.52,141.51,16.98]
[1763363642252,2.47400664,141.52,141.51,16.98]
[1763363643277,1.79400664,141.52,141.51,16.98]
[1763363643444,7.85602656,141.54,141.51,17.7]
[1763363643445,1.79400664,141.53,141.51,17.7]
[1763363643769,1.79400664,141.53,141.51,16.98]
[1763363643941,0.68,141.54,141.51,16.98]
[1763363644139,1.79400664,141.53,141.51,16.98]
[1763363645045,1.79400664,141.52,141.51,16.98]
[1763363647352,1.79400664,141.52,141.49,0.72]
[1763363647578,1.79400664,141.51,141.49,0.72]
[1763363647878,1.79400664,141.51,141.48,0.72]
[1763363648067,1.79400664,141.49,141.48,22.6512]
[1763363648376,1.79400664,141.5,141.48,22.6512]
[1763363648560,1.79400664,141.5,141.47,0.92]
[1763363648761,1.79400664,141.5,141.47,23.5712]
[1763363649372,1.79400664,141.5,141.47,0.92]
[1763363650178,1.79400664,141.49,141.47,0.92]
[1763363650479,1.79400664,141.5,141.47,0.92]
[1763363650653,1.79400664,141.51,141.48,0.72]
[1763363651651,1.79400664,141.52,141.48,0.72]
[1763363652470,0.68,141.55,141.48,2.51400664]
[1763363652471,1.79400664,141.53,141.48,2.51400664]
[1763363652881,1.79400664,141.53,141.49,0.72]
[1763363653775,1.79400664,141.55,141.49,9.58159461]
[1763363654170,1.79400664,141.55,141.5,0.72]
[1763363654371,104.89400664,141.56,141.51,1.79400664]
[1763363654575,105.57400664,141.56,141.51,1.79400664]
[1763363654772,105.57400664,141.56,141.52,0.72]
[1763363656102,131.51571646,141.6,141.52,0.72]
[1763363656388,2.47400664,141.58,141.53,1.79400664]
[1763363656756,23.3312,141.57,141.53,1.79400664]
[1763363656973,23.3312,141.57,141.54,0.72]
[1763363657177,22.6512,141.57,141.54,0.72]
[1763363657476,2.47400664,141.56,141.52,0.72]
[1763363657865,24.44520664,141.57,141.52,2.51400664]
[1763363658059,25.12520664,141.57,141.52,0.72]
[1763363658264,25.12520664,141.57,141.53,0.72]
[1763363661389,1.79400664,141.56,141.53,0.72]
[1763363661578,1.79400664,141.56,141.5,0.72]
[1763363661579,0.68,141.56,141.5,0.72]
[1763363661784,1.79400664,141.53,141.49,23.3712]
[1763363661960,1.79400664,141.52,141.49,0.72]
[1763363662291,1.79400664,141.5,141.47,0.2]
[1763363662596,22.6512,141.51,141.47,0.2]
[1763363662772,1.79400664,141.49,141.47,0.2]
[1763363663082,2.47400664,141.5,141.47,0.2]
[1763363663467,1.79400664,141.48,141.47,0.2]
[1763363663865,2.45400664,141.48,141.47,0.2]
[1763363664267,1.79400664,141.49,141.47,0.2]
[1763363664994,1.79400664,141.49,141.47,0.89]
[1763363665285,1.79400664,141.5,141.47,0.89]
[1763363666285,24.44520664,141.51,141.48,0.69]
[1763363666999,1.79400664,141.52,141.48,0.69]
[1763363667788,104.89400664,141.52,141.48,0.69]
[1763363667958,1.79400664,141.51,141.48,0.69]
[1763363668801,104.89400664,141.52,141.48,0.69]
[1763363669384,103.76,141.55,141.48,2.48400664]
[1763363669593,1.79400664,141.54,141.49,1.79400664]
[1763363669804,1.79400664,141.54,141.5,0.69]
[1763363670166,1.79400664,141.56,141.51,1.79400664]
[1763363670584,2.46400664,141.56,141.52,0.68]
[1763363671288,24.44520664,141.57,141.52,0.68]
[1763363671613,24.44520664,141.57,141.52,2.47400664]
[1763363671614,1.79400664,141.57,141.52,2.47400664]
[1763363671892,1.79400664,141.58,141.53,1.79400664]
[1763363672096,24.44520664,141.58,141.54,0.68]
[1763363672422,25.11520664,141.58,141.54,0.68]
[1763363674618,22.6512,141.58,141.54,0.68]
[1763363674805,0.67,141.67,141.57,24.44520664]
[1763363675018,1.79400664,141.68,141.62,1.79400664]
[1763363675321,0.67,141.69,141.65,1.79400664]
[1763363675507,1.89400664,141.7,141.65,1.79400664]
[1763363675508,0.67,141.68,141.65,1.79400664]
[1763363675694,0.67,141.69,141.65,2.47400664]
[1763363675894,2.46400664,141.69,141.65,2.47400664]
[1763363676312,1.79400664,141.69,141.65,0.68]
[1763363676494,0.67,141.68,141.65,2.47400664]
[1763363676689,2.46400664,141.69,141.65,2.47400664]
[1763363676888,0.67,141.68,141.65,5.65277141]
[1763363677112,5.64277141,141.69,141.65,5.65277141]
[1763363677901,0.67,141.69,141.65,5.65277141]
[1763363678096,5.07277141,141.7,141.63,0.68]
[1763363678097,5.64277141,141.68,141.63,0.68]
[1763363678398,4.97277141,141.66,141.62,4.97277141]
[1763363678609,4.97277141,141.66,141.62,0.68]
[1763363678917,5.64277141,141.66,141.62,5.65277141]
[1763363679305,22.6512,141.69,141.62,4.97277141]
[1763363679526,5.64277141,141.68,141.63,5.65277141]
[1763363680021,0.67,141.67,141.63,5.65277141]
[1763363680898,5.64277141,141.67,141.63,0.68]
[1763363681216,0.67,141.67,141.63,5.65277141]
[1763363681595,0.67,141.66,141.62,0.68]
[1763363681813,0.67,141.66,141.62,5.65277141]
[1763363682423,0.67,141.66,141.63,0.68]
[1763363683811,5.64277141,141.66,141.63,0.68]
[1763363684519,0.67,141.66,141.63,0.68]
[1763363684718,0.67,141.66,141.62,4.97277141]
[1763363684944,0.67,141.66,141.63,0.68]
[1763363685811,0.67,141.66,141.62,5.65277141]
[1763363686209,0.67,141.66,141.63,0.68]
[1763363687893,5.64277141,141.66,141.61,5.65277141]
[1763363688098,4.97277141,141.64,141.59,5.65277141]
[1763363688599,0.67,141.63,141.6,0.68]
[1763363691326,4.97277141,141.62,141.58,5.65277141]
[1763363691702,0.67,141.61,141.58,5.65277141]
[1763363691904,0.67,141.61,141.57,5.65277141]
[1763363692130,5.64277141,141.61,141.57,4.97277141]
[1763363692310,5.64277141,141.61,141.53,16.98]
[1763363692514,4.97277141,141.58,141.53,22.63277141]
[1763363692727,5.64277141,141.57,141.53,22.63277141]
[1763363692916,5.64277141,141.57,141.53,45.28397141]
[1763363693114,0.67,141.57,141.53,22.63277141]
[1763363693312,0.67,141.57,141.53,21.95277141]
[1763363693516,0.67,141.57,141.54,0.68]
[1763363694817,4.97277141,141.59,141.55,0.68]
[1763363695015,0.67,141.62,141.56,4.97277141]
[1763363695219,0.67,141.61,141.57,4.97277141]
[1763363695729,0.67,141.61,141.57,5.65277141]
[1763363696334,5.64277141,141.61,141.57,5.65277141]
[1763363696536,0.67,141.61,141.57,5.65277141]
[1763363696736,0.67,141.61,141.58,0.68]
[1763363697049,0.67,141.61,141.57,5.65277141]
[1763363698719,23.3212,141.61,141.57,5.65277141]
[1763363698915,26.12152735,141.61,141.57,0.68]
[1763363700157,0.67,141.6,141.53,56.48530217]
[1763363700339,3.47032735,141.6,141.55,2.80032735]
[1763363700534,3.47032735,141.6,141.56,2.80032735]
[1763363700839,22.6512,141.61,141.56,2.80032735]
[1763363701141,3.46032735,141.61,141.57,0.65]
[1763363701542,3.46032735,141.6,141.56,22.6512]
[1763363701729,3.46032735,141.6,141.54,22.6512]
[1763363701730,2.80032735,141.58,141.54,22.6512]
[1763363702127,2.80032735,141.59,141.56,22.6512]
[1763363702330,103.1,141.63,141.56,23.3012]
[1763363702331,3.46032735,141.6,141.56,23.3012]
[1763363702841,0.66,141.59,141.56,23.3012]
[1763363703035,2.80032735,141.6,141.56,23.3012]
[1763363703238,3.46032735,141.62,141.57,3.45032735]
[1763363703458,0.66,141.62,141.58,2.80032735]
[1763363703770,103.1,141.63,141.6,2.80032735]
[1763363703975,103.76,141.63,141.6,2.80032735]
[1763363704258,0.1,141.7,141.62,2.80032735]
[1763363704554,0.66,141.69,141.65,2.80032735]
[1763363704758,0.66,141.69,141.66,2.80032735]
[1763363705145,0.66,141.69,141.65,3.45032735]
[1763363705653,3.46032735,141.69,141.64,2.80032735]
[1763363706045,0.66,141.68,141.64,3.45032735]
[1763363708054,3.46032735,141.68,141.63,2.80032735]
[1763363708257,3.46032735,141.68,141.63,3.45032735]
[1763363708433,0.66,141.67,141.63,3.45032735]
[1763363708637,0.66,141.67,141.64,3.45032735]
[1763363708948,3.46032735,141.69,141.64,3.45032735]
[1763363709147,0.66,141.68,141.64,3.45032735]
[1763363709348,0.66,141.68,141.64,0.65]
[1763363709547,0.66,141.68,141.64,2.80032735]
[1763363709842,0.66,141.68,141.64,3.45032735]
[1763363710146,0.1,141.7,141.67,2.80032735]
[1763363710344,0.76,141.7,141.67,2.80032735]
[1763363710544,0.1,141.7,141.67,2.80032735]
[1763363710767,0.1,141.7,141.67,3.45032735]
[1763363711258,0.76,141.7,141.67,3.45032735]
[1763363711869,0.76,141.7,141.67,2.80032735]
[1763363712038,0.1,141.7,141.69,2.80032735]
[1763363712534,0.1,141.7,141.69,3.45032735]
[1763363714366,0.1,141.7,141.69,20.29681613]
[1763363715467,0.1,141.7,141.69,13.23915504]
[1763363716249,0.1,141.7,141.69,10.43882769]
[1763363716462,0.1,141.7,141.66,9.85906672]
[1763363716463,0.76,141.7,141.66,0.65]
[1763363716642,0.76,141.7,141.67,2.80032735]
[1763363717043,0.76,141.7,141.66,3.45032735]
[1763363717243,0.76,141.7,141.67,2.80032735]
[1763363717472,0.76,141.7,141.67,3.45032735]
[1763363718153,3.56032735,141.7,141.65,2.80032735]
[1763363718467,2.80032735,141.68,141.63,2.80032735]
[1763363718860,0.69,141.67,141.63,8.48482534]
[1763363719645,0.69,141.67,141.64,8.48482534]
[1763363719967,0.69,141.67,141.64,7.79482534]
[1763363720350,0.69,141.67,141.63,0.69]
[1763363720549,0.69,141.67,141.63,8.48482534]
[1763363724284,0.69,141.67,141.64,0.69]
[1763363724457,0.69,141.67,141.63,7.79482534]
[1763363724655,0.69,141.67,141.63,8.48482534]
[1763363724853,103.1,141.68,141.65,7.79482534]
[1763363725067,22.6512,141.69,141.66,8.48482534]
[1763363725375,23.3412,141.69,141.65,7.79482534]
[1763363725758,0.69,141.68,141.65,7.79482534]
[1763363727484,0.69,141.68,141.64,0.69]
[1763363727485,8.48482534,141.68,141.64,22.6512]
[1763363727673,7.79482534,141.67,141.62,7.79482534]
[1763363727988,8.48482534,141.67,141.62,30.44602534]
[1763363728289,8.48482534,141.67,141.63,0.69]
[1763363729558,7.79482534,141.68,141.63,8.48482534]
[1763363729987,0.69,141.67,141.63,8.48482534]
[1763363732277,111.58482534,141.67,141.62,7.79482534]
[1763363732507,111.58482534,141.67,141.57,0.72]
[1763363732508,7.79482534,141.63,141.57,0.72]
[1763363732774,7.79482534,141.61,141.56,7.79482534]
[1763363732981,7.79482534,141.6,141.55,30.44602534]
[1763363733163,8.46482534,141.59,141.53,16.98]
[1763363733365,7.79482534,141.58,141.53,47.42602534]
[1763363733564,0.67,141.58,141.54,7.79482534]
[1763363733808,0.67,141.58,141.55,7.79482534]
[1763363734679,7.79482534,141.6,141.55,8.51482534]
[1763363734880,0.67,141.59,141.56,7.79482534]
[1763363736102,125.7512,141.61,141.58,7.79482534]
[1763363736601,126.4212,141.61,141.58,8.51482534]
[1763363737006,103.77,141.61,141.58,8.51482534]
[1763363737524,103.1,141.61,141.54,9.78882769]
[1763363737715,0.67,141.6,141.57,7.79482534]
[1763363741384,0.67,141.6,141.57,8.51482534]
[1763363742804,0.67,141.61,141.58,8.51482534]
[1763363743497,30.44602534,141.62,141.58,8.51482534]
[1763363743498,22.6512,141.62,141.58,7.79482534]
[1763363743703,0.67,141.62,141.59,0.72]
[1763363743887,103.1,141.64,141.6,7.79482534]
[1763363744091,103.77,141.64,141.61,7.79482534]
[1763363744914,103.77,141.64,141.61,8.51482534]
[1763363745790,103.77,141.64,141.55,16.85333338]
[1763363746004,103.77,141.64,141.6,7.79482534]
[1763363746185,0.67,141.63,141.6,8.51482534]
[1763363748607,8.46482534,141.68,141.62,7.79482534]
[1763363748910,8.46482534,141.68,141.61,0.72]
[1763363748911,23.3212,141.68,141.64,7.79482534]
[1763363749092,0.67,141.67,141.64,7.79482534]
[1763363749791,0.67,141.67,141.63,8.51482534]
[1763363750405,0.67,141.67,141.64,0.72]
[1763363750596,0.67,141.67,141.64,8.51482534]
[1763363751006,0.67,141.67,141.65,7.79482534]
[1763363751312,0.67,141.69,141.65,0.72]
[1763363751500,0.67,141.68,141.66,7.79482534]
[1763363751700,0.67,141.68,141.64,0.72]
[1763363751890,7.79482534,141.67,141.61,22.6512]
[1763363752221,7.79482534,141.64,141.59,30.44602534]
[1763363752408,7.79482534,141.64,141.59,7.79482534]
[1763363752716,8.46482534,141.63,141.57,8.51482534]
[1763363752907,7.79482534,141.62,141.56,7.79482534]
[1763363753214,8.46482534,141.62,141.57,7.79482534]
[1763363753414,0.67,141.61,141.57,7.79482534]
[1763363753595,0.67,141.61,141.57,8.51482534]
[1763363753988,8.46482534,141.61,141.56,7.79482534]
[1763363754390,0.67,141.6,141.56,8.51482534]
[1763363755216,0.67,141.6,141.57,7.79482534]
[1763363755717,0.67,141.6,141.56,8.51482534]
[1763363756197,30.44602534,141.62,141.57,8.51482534]
[1763363756513,23.3212,141.62,141.57,0.72]
[1763363756819,0.67,141.61,141.58,7.79482534]
[1763363757526,0.67,141.61,141.58,8.51482534]
[1763363757716,7.79482534,141.64,141.58,8.51482534]
[1763363758014,0.67,141.63,141.59,7.79482534]
[1763363759425,0.67,141.63,141.58,0.72]
[1763363759630,8.46482534,141.63,141.58,8.51482534]
[1763363759997,0.67,141.62,141.58,8.51482534]
[1763363760500,8.46482534,141.62,141.57,7.79482534]
[1763363760816,0.67,141.62,141.58,4.97829036]
[1763363761324,0.67,141.62,141.58,5.63829036]
[1763363761494,5.64829036,141.62,141.56,0.66]
[1763363761823,0.67,141.62,141.56,0.66]
[1763363762606,0.67,141.62,141.58,4.97829036]
[1763363762815,0.69,141.66,141.61,4.97829036]
[1763363763013,23.3412,141.66,141.62,4.97829036]
[1763363763527,0.69,141.65,141.62,4.97829036]
[1763363763893,103.79,141.67,141.63,4.97829036]
[1763363764114,0.69,141.67,141.64,4.97829036]
[1763363764391,0.69,141.66,141.62,0.66]
[1763363764703,0.69,141.66,141.64,4.97829036]
[1763363764910,4.97829036,141.69,141.64,4.97829036]
[1763363765218,0.69,141.68,141.59,39.50266765]
[1763363765529,0.69,141.68,141.64,4.97829036]
[1763363766107,4.97829036,141.67,141.59,32.44002769]
[1763363766319,4.97829036,141.65,141.6,4.97829036]
[1763363766508,4.97829036,141.66,141.6,5.63829036]
[1763363766828,27.62949036,141.66,141.6,5.63829036]
[1763363766994,0.69,141.65,141.6,5.63829036]
[1763363767424,5.66829036,141.65,141.59,4.97829036]
[1763363767596,4.97829036,141.64,141.58,5.63829036]
[1763363767797,5.66829036,141.64,141.58,5.63829036]
[1763363768030,0.69,141.63,141.58,5.63829036]
[1763363768996,4.97829036,141.62,141.56,0.66]
[1763363769214,4.97829036,141.62,141.57,4.97829036]
[1763363769417,0.69,141.61,141.57,4.97829036]
[1763363769615,0.69,141.61,141.57,5.63829036]
[1763363770510,0.69,141.61,141.56,4.97829036]
[1763363770712,4.97829036,141.6,141.53,0.66]
[1763363770915,4.97829036,141.59,141.54,4.97829036]
[1763363771116,5.66829036,141.6,141.54,4.97829036]
[1763363771313,5.66829036,141.6,141.55,4.97829036]
[1763363771530,0.69,141.59,141.55,4.97829036]
[1763363771701,0.69,141.59,141.55,5.63829036]
[1763363772229,0.69,141.59,141.55,0.66]
[1763363772417,0.69,141.59,141.54,4.97829036]
[1763363772609,0.69,141.59,141.54,5.63829036]
[1763363773328,0.69,141.59,141.55,5.63829036]
[1763363773529,0.69,141.59,141.56,4.97829036]
[1763363773707,0.69,141.59,141.56,5.63829036]
[1763363774528,0.69,141.59,141.56,4.97829036]
[1763363774834,0.69,141.59,141.56,5.63829036]
[1763363775437,27.62949036,141.62,141.56,5.63829036]
[1763363775630,0.69,141.6,141.56,5.63829036]
[1763363775936,0.69,141.6,141.56,0.66]
[1763363776128,0.69,141.6,141.56,5.63829036]
[1763363776336,23.3412,141.62,141.57,4.97829036]
[1763363776634,0.69,141.61,141.57,5.63829036]
[1763363777239,0.69,141.61,141.55,22.6512]
[1763363777240,0.69,141.61,141.58,5.67829036]
[1763363778143,0.69,141.61,141.58,0.7]
[1763363778433,4.97829036,141.63,141.57,22.6512]
[1763363778434,0.71,141.63,141.59,5.67829036]
[1763363778631,0.71,141.63,141.59,4.97829036]
[1763363778814,0.71,141.62,141.59,4.97829036]
[1763363779414,0.71,141.62,141.59,5.67829036]
[1763363780733,4.97829036,141.64,141.55,29.71583139]
[1763363780734,0.71,141.64,141.6,5.67829036]
[1763363781042,0.71,141.64,141.6,4.97829036]
[1763363781209,103.81,141.65,141.61,5.67829036]
[1763363782510,0.71,141.64,141.61,5.67829036]
[1763363782927,0.71,141.64,141.61,2.49126451]
[1763363784523,23.3612,141.67,141.61,1.79126451]
[1763363784722,103.1,141.69,141.63,1.79126451]
[1763363784723,0.71,141.68,141.63,1.79126451]
[1763363785234,0.71,141.68,141.63,2.49126451]
[1763363786030,2.50126451,141.68,141.63,2.49126451]
[1763363786316,0.71,141.67,141.63,2.49126451]
[1763363786524,0.71,141.67,141.63,0.7]
[1763363787615,2.50126451,141.67,141.62,1.79126451]
[1763363787911,1.79126451,141.66,141.61,2.49126451]
[1763363788116,2.50126451,141.66,141.61,2.49126451]
[1763363788342,0.71,141.65,141.61,2.49126451]
[1763363788713,0.71,141.65,141.61,0.7]
[1763363789540,0.71,141.65,141.61,2.49126451]
[1763363790414,0.71,141.65,141.6,24.44246451]
[1763363790638,105.60126451,141.65,141.59,2.51126451]
[1763363790833,105.60126451,141.65,141.6,1.79126451]
[1763363791010,0.71,141.68,141.64,1.79126451]
[1763363791213,0.71,141.68,141.65,1.79126451]
[1763363791628,0.81,141.7,141.66,2.51126451]
[1763363791839,0.1,141.7,141.67,1.79126451]
[1763363792063,0.1,141.7,141.69,1.79126451]
[1763363792938,0.1,141.7,141.69,2.51126451]
[1763363793244,0.1,141.7,141.69,12.3000922]
[1763363794523,0.1,141.7,141.69,10.50882769]
[1763363794724,0.1,141.7,141.69,12.3000922]
[1763363795041,0.1,141.7,141.69,4.9685835]
[1763363795541,0.1,141.7,141.69,5.6885835]
[1763363797447,0.1,141.7,141.69,15.47741119]
[1763363797742,0.1,141.7,141.69,22.53507228]
[1763363798620,0.1,141.7,141.69,45.18627228]
[1763363798818,0.1,141.72,141.71,32.44002769]
[1763363799058,0.1,141.72,141.71,37.40861119]
[1763363799234,0.1,141.72,141.71,38.12861119]
[1763363800241,0.1,141.72,141.71,45.18527621]
[1763363800547,0.1,141.78,141.72,10.50882769]
[1763363800731,0.1,141.78,141.77,4.9685835]
[1763363801135,0.1,141.78,141.77,5.6885835]
[1763363802022,0.1,141.78,141.77,4.9685835]
[1763363802223,0.1,141.78,141.77,5.6885835]
[1763363802646,0.1,141.78,141.77,4.9685835]
[1763363804129,0.1,141.78,141.76,0.72]
[1763363804441,0.1,141.78,141.77,4.9685835]
[1763363804949,0.1,141.78,141.77,5.6885835]
[1763363805629,0.1,141.78,141.77,15.47741119]
[1763363805850,0.1,141.79,141.78,9.78882769]
[1763363806025,0.1,141.8,141.78,36.25580538]
[1763363806230,0.1,141.81,141.79,22.53009473]
[1763363806433,0.1,141.81,141.8,4.9685835]
[1763363806629,0.1,141.81,141.8,5.6885835]
[1763363806849,0.1,141.81,141.8,10.50882769]
[1763363807055,0.1,141.81,141.8,15.47741119]
[1763363807850,0.1,141.81,141.8,14.75741119]
[1763363810142,0.1,141.81,141.8,15.47741119]
[1763363811069,0.1,141.81,141.8,22.52959736]
[1763363811782,0.1,141.81,141.8,15.47741119]
[1763363812244,0.1,141.81,141.8,22.52959736]
[1763363813457,0.1,141.81,141.8,15.47741119]
[1763363814171,0.1,141.81,141.8,22.52959736]
[1763363814471,0.71,141.86,141.81,9.78882769]
[1763363814674,0.71,141.86,141.85,4.9685835]
[1763363815353,0.71,141.86,141.81,10.50882769]
[1763363815643,0.71,141.86,141.85,4.9685835]
[1763363816569,0.71,141.86,141.84,4.9685835]
[1763363816771,0.71,141.86,141.84,1.78551901]
[1763363818163,0.71,141.86,141.85,1.78551901]
[1763363818775,0.71,141.86,141.85,4.95905468]
[1763363820767,0.71,141.86,141.85,7.77020841]
[1763363821268,0.71,141.86,141.83,9.78882769]
[1763363821466,0.71,141.86,141.85,7.77020841]
[1763363822673,0.66,141.91,141.86,9.78882769]
[1763363822875,0.66,141.93,141.9,7.77020841]
[1763363823051,0.66,141.93,141.92,7.77020841]
[1763363824565,8.43020841,141.93,141.84,0.66]
[1763363824877,7.77020841,141.91,141.86,7.77020841]
[1763363825372,7.77020841,141.89,141.84,7.77020841]
[1763363825759,0.66,141.88,141.81,7.77020841]
[1763363826087,7.77020841,141.87,141.81,7.77020841]
[1763363826582,7.77020841,141.87,141.79,9.78882769]
[1763363826583,0.66,141.86,141.82,7.77020841]
[1763363826787,0.66,141.86,141.83,7.77020841]
[1763363827165,0.66,141.86,141.84,7.77020841]
[1763363827353,0.66,141.86,141.85,7.77020841]
[1763363827562,0.66,141.88,141.85,7.77020841]
[1763363828556,0.66,141.88,141.86,7.77020841]
[1763363828755,0.66,141.88,141.85,7.77020841]
[1763363830466,9.78882769,141.93,141.87,7.77020841]
[1763363830670,0.66,141.9,141.87,7.77020841]
[1763363831356,0.66,141.9,141.84,0.66]
[1763363831571,0.66,141.9,141.87,7.77020841]
[1763363832080,0.66,141.9,141.86,7.77020841]
[1763363832381,0.66,141.9,141.87,7.77020841]
[1763363833050,0.66,141.9,141.88,7.77020841]
[1763363833962,0.66,141.93,141.89,8.43020841]
[1763363834163,0.66,141.93,141.85,32.44002769]
[1763363834164,0.66,141.93,141.91,7.77020841]
[1763363834366,0.66,141.93,141.89,0.66]
[1763363834554,0.66,141.93,141.89,8.43020841]
[1763363834755,0.66,141.93,141.89,7.77020841]
[1763363834958,0.66,141.93,141.9,7.77020841]
[1763363835157,0.66,141.94,141.87,9.78882769]
[1763363835390,0.66,141.94,141.88,0.66]
[1763363835697,0.66,141.94,141.89,7.77020841]
[1763363836100,0.66,141.94,141.89,8.43020841]
[1763363836390,0.66,141.94,141.9,7.77020841]
[1763363836582,0.66,141.94,141.89,0.66]
[1763363836780,8.43020841,141.94,141.87,10.44882769]
[1763363836964,8.43020841,141.94,141.88,7.77020841]
[1763363837164,7.77020841,141.92,141.86,7.77020841]
[1763363837592,0.66,141.91,141.86,7.77020841]
[1763363838670,8.43020841,141.91,141.85,7.77020841]
[1763363838865,0.66,141.91,141.86,7.77020841]
[1763363839111,0.66,141.9,141.86,7.77020841]
[1763363839884,0.66,141.9,141.87,7.77020841]
[1763363840098,0.66,141.9,141.87,8.43020841]
[1763363840292,0.66,141.9,141.86,17.5590361]
[1763363840796,0.66,141.9,141.87,7.77020841]
[1763363841090,0.66,141.9,141.87,8.43020841]
[1763363841294,23.3112,141.92,141.88,0.66]
[1763363841665,0.1,141.96,141.89,7.77020841]
[1763363841890,0.66,141.95,141.9,7.77020841]
[1763363842314,0.66,141.95,141.9,8.43020841]
[1763363842465,0.66,141.95,141.91,0.66]
[1763363842862,0.66,141.95,141.91,8.43020841]
[1763363843594,0.66,141.95,141.91,7.77020841]
[1763363843796,0.66,141.95,141.92,7.77020841]
[1763363844090,0.76,141.96,141.92,8.43020841]
[1763363844295,0.66,141.95,141.93,7.77020841]
[1763363844672,0.66,141.95,141.92,7.77020841]
[1763363845068,0.66,141.95,141.9,0.66]
[1763363845484,0.66,141.95,141.91,7.77020841]
[1763363845682,0.66,141.95,141.92,7.77020841]
[1763363846188,0.66,141.95,141.89,7.77020841]
[1763363846402,0.66,141.95,141.9,7.77020841]
[1763363846781,0.66,141.95,141.9,8.43020841]
[1763363847725,0.66,141.95,141.9,7.77020841]
[1763363848217,31.08140841,141.95,141.89,7.77020841]
[1763363848387,0.66,141.94,141.89,7.77020841]
[1763363849228,8.43020841,141.94,141.88,7.77020841]
[1763363849396,22.6512,141.91,141.86,7.77020841]
[1763363849714,0.66,141.9,141.86,7.77020841]
[1763363850405,0.66,141.9,141.87,7.77020841]
[1763363852306,0.66,141.9,141.84,7.77020841]